fUST/lending_fUST_20250628
["ID","MTS","AMOUNT","RATE_DAILY","PERIOD"]
[368294844,1751097049451,-151.0,0.0002082,2]
[368294845,1751097049460,-160.0,0.0002082,7]
[368294846,1751097049470,-213.78848551,0.0002082,7]
[368294847,1751097049480,-12564.78152626,0.0002082,7]
[368294848,1751097049490,-847.18566335,0.0002082,7]
[368294849,1751097049501,-306.82598111,0.00020821,2]
[368294850,1751097049511,-552.08,0.00020821,2]
[368294851,1751097049520,-460.0,0.00020821,2]
[368294852,1751097049530,-460.0,0.00020821,2]
[368294853,1751097049540,-460.0,0.00020821,2]
[368294854,1751097049549,-460.0,0.00020821,2]
[368294855,1751097049559,-460.0,0.00020821,2]
[368294856,1751097049569,-734.98,0.00020821,2]
[368294857,1751097049578,-476.45581029,0.00020821,2]
[368294858,1751097049588,-460.0,0.00020821,2]
[368294859,1751097049597,-547.8195284,0.00020821,2]
[368294860,1751097049607,-4169.62,0.00020821,2]
[368294861,1751097049616,-460.0,0.00020821,2]
[368294862,1751097049626,-732.48,0.00020821,2]
[368294863,1751097049635,-2452.88,0.00020821,2]
[368294864,1751097049645,-649.65,0.00020821,2]
[368294865,1751097049654,-738.92,0.00020821,2]
[368294866,1751097049664,-1337.25,0.00020821,2]
[368294867,1751097049674,-460.0,0.00020821,2]
[368294868,1751097049683,-556.47,0.00020821,2]
[368294869,1751097049693,-2178.44,0.00020821,2]
[368294870,1751097049702,-481.02,0.00020821,2]
[368294871,1751097049711,-460.0,0.00020821,2]
[368294872,1751097049719,-679.83,0.00020821,2]
[368294873,1751097049728,-1275.64,0.00020821,2]
[368294874,1751097049738,-675.36,0.00020821,2]
[368294875,1751097049747,-460.0,0.00020821,2]
[368294876,1751097049756,-647.34,0.00020821,2]
[368294877,1751097049766,-2143.18,0.00020821,2]
[368294878,1751097049775,-460.0,0.00020821,2]
[368294879,1751097049785,-460.0,0.00020821,2]
[368294880,1751097049794,-929.5,0.00020821,2]
[368294881,1751097049803,-512.42,0.00020821,2]
[368294882,1751097049813,-460.0,0.00020821,2]
[368294883,1751097049822,-2107.7,0.00020821,2]
[368294884,1751097049831,-477.23,0.00020821,2]
[368294885,1751097049841,-460.0,0.00020821,2]
[368294886,1751097049850,-929.29,0.00020821,2]
[368294887,1751097049859,-460.0,0.00020821,2]
[368294888,1751097049869,-1835.86,0.00020821,2]
[368294889,1751097049878,-2555.55,0.00020821,2]
[368294890,1751097049888,-460.0,0.00020821,2]
[368294891,1751097049897,-460.0,0.00020821,2]
[368294892,1751097049906,-460.0,0.00020821,2]
[368294893,1751097049915,-502.59,0.00020821,2]
[368294894,1751097049924,-460.0,0.00020821,2]
[368294895,1751097049933,-460.0,0.00020821,2]
[368294896,1751097049946,-460.0,0.00020821,2]
[368294897,1751097049955,-1344.01,0.00020821,2]
[368294898,1751097049964,-2037.07,0.00020821,2]
[368294899,1751097049974,-667.02,0.00020821,2]
[368294900,1751097049983,-1253.37,0.00020821,2]
[368294901,1751097049992,-460.0,0.00020821,2]
[368294902,1751097050002,-460.0,0.00020821,2]
[368294903,1751097050011,-478.2323269,0.00020821,2]
[368294904,1751097050051,-460.0,0.00020821,2]
[368294905,1751097050060,-460.0,0.00020821,2]
[368294906,1751097050070,-460.0,0.00020821,2]
[368294907,1751097050079,-460.0,0.00020821,2]
[368294908,1751097050089,-3188.43,0.00020821,2]
[368294909,1751097050098,-541.05,0.00020821,2]
[368294910,1751097050107,-460.0,0.00020821,2]
[368294911,1751097050116,-460.0,0.00020821,2]
[368294912,1751097050126,-1392.9,0.00020821,2]
[368294913,1751097050135,-460.0,0.00020821,2]
[368294914,1751097050144,-460.0,0.00020821,2]
[368294915,1751097050153,-1296.65,0.00020821,2]
[368294916,1751097050163,-1547.24,0.00020821,2]
[368294917,1751097050172,-813.94,0.00020821,2]
[368294918,1751097050182,-1660.51,0.00020821,2]
[368294919,1751097050191,-716.195754,0.00020848,2]
[368294920,1751097050200,-8642.2896708,0.00020866,4]
[368294921,1751097050209,-420.0,0.00020899,2]
[368294922,1751097050218,-156.22770868,0.00020903,2]
[368294923,1751097050227,-500.0,0.00020958,15]
[368294924,1751097050237,-151.0,0.00021,4]
[368294925,1751097050246,-195.1,0.00021041,4]
[368294926,1751097050257,-393.69266514,0.00021058,2]
[368294927,1751097050267,-1397.0,0.00021093,2]
[368294928,1751097050278,-552.08,0.00021095,2]
[368294929,1751097050287,-227.37418704,0.00021095,2]
[368294930,1751097050297,-460.0,0.00021095,2]
[368294931,1751097050307,-460.0,0.00021095,2]
[368294932,1751097050316,-460.0,0.00021095,2]
[368294933,1751097050326,-734.98,0.00021095,2]
[368294934,1751097050336,-460.0,0.00021095,2]
[368294935,1751097050346,-4169.62,0.00021095,2]
[368294936,1751097050357,-732.48,0.00021095,2]
[368294937,1751097050367,-460.0,0.00021095,2]
[368294938,1751097050376,-2452.88,0.00021095,2]
[368294939,1751097050386,-649.65,0.00021095,2]
[368294940,1751097050395,-738.92,0.00021095,2]
[368294941,1751097050404,-1337.25,0.00021095,2]
[368294942,1751097050414,-460.0,0.00021095,2]
[368294943,1751097050423,-556.47,0.00021095,2]
[368294944,1751097050433,-2178.44,0.00021095,2]
[368294945,1751097050442,-481.02,0.00021095,2]
[368294946,1751097050452,-460.0,0.00021095,2]
[368294947,1751097050461,-679.83,0.00021095,2]
[368294948,1751097050470,-1275.64,0.00021095,2]
[368294949,1751097050480,-675.36,0.00021095,2]
[368294950,1751097050489,-460.0,0.00021095,2]
[368294951,1751097050500,-647.34,0.00021095,2]
[368294952,1751097050510,-2143.18,0.00021095,2]
[368294953,1751097050520,-460.0,0.00021095,2]
[368294954,1751097050530,-460.0,0.00021095,2]
[368294955,1751097050539,-929.5,0.00021095,2]
[368294956,1751097050548,-512.42,0.00021095,2]
[368294957,1751097050558,-460.0,0.00021095,2]
[368294958,1751097050567,-2107.7,0.00021095,2]
[368294959,1751097050577,-477.23,0.00021095,2]
[368294960,1751097050589,-460.0,0.00021095,2]
[368294961,1751097050599,-929.29,0.00021095,2]
[368294962,1751097050608,-460.0,0.00021095,2]
[368294963,1751097050617,-1835.86,0.00021095,2]
[368294964,1751097050627,-2555.55,0.00021095,2]
[368294965,1751097050636,-460.0,0.00021095,2]
[368294966,1751097050646,-460.0,0.00021095,2]
[368294967,1751097050655,-460.0,0.00021095,2]
[368294968,1751097050664,-502.59,0.00021095,2]
[368294969,1751097050674,-460.0,0.00021095,2]
[368294970,1751097050683,-460.0,0.00021095,2]
[368294971,1751097050693,-460.0,0.00021095,2]
[368294972,1751097050702,-1344.01,0.00021095,2]
[368294973,1751097050712,-2037.07,0.00021095,2]
[368294974,1751097050721,-667.02,0.00021095,2]
[368294975,1751097050732,-1253.37,0.00021095,2]
[368294976,1751097050743,-460.0,0.00021095,2]
[368294977,1751097050752,-514.42344976,0.00021095,2]
[368294978,1751097050762,-460.0,0.00021095,2]
[368294979,1751097050773,-460.0,0.00021095,2]
[368294980,1751097050783,-460.0,0.00021095,2]
[368294981,1751097050792,-460.0,0.00021095,2]
[368294982,1751097050802,-3188.43,0.00021095,2]
[368294983,1751097050812,-541.05,0.00021095,2]
[368294984,1751097050823,-460.0,0.00021095,2]
[368294985,1751097050835,-549.97497975,0.00021095,2]
[368294986,1751097050845,-1392.9,0.00021095,2]
[368294987,1751097050855,-460.0,0.00021095,2]
[368294988,1751097050865,-583.06005202,0.00021095,2]
[368294989,1751097050874,-1296.65,0.00021095,2]
[368294990,1751097050884,-1547.24,0.00021095,2]
[368294991,1751097050893,-813.94,0.00021095,2]
[368294992,1751097050903,-1660.51,0.00021095,2]
[368294993,1751097050912,-8642.2896708,0.00021107,4]
[368294994,1751097050922,-500.0,0.000212,2]
[368294995,1751097050931,-500.0,0.000212,2]
[368294996,1751097050941,-195.1,0.00021277,4]
[368294997,1751097050951,-5000.0,0.00021286,2]
[368294998,1751097050962,-151.0,0.000213,3]
[368294999,1751097050972,-1397.0,0.00021314,2]
[368295000,1751097050981,-8642.2896708,0.00021348,5]
[368295001,1751097050991,-500.0,0.00021363,2]
[368295002,1751097051001,-500.0,0.00021369,16]
[368295003,1751097051010,-151.0,0.00021369,2]
[368295004,1751097051020,-552.08,0.00021369,2]
[368295005,1751097051029,-460.0,0.00021369,2]
[368295006,1751097051039,-460.0,0.00021369,2]
[368295007,1751097051048,-460.0,0.00021369,2]
[368295008,1751097051058,-734.98,0.00021369,2]
[368295009,1751097051067,-460.0,0.00021369,2]
[368295010,1751097051077,-4169.62,0.00021369,2]
[368295011,1751097051086,-732.48,0.00021369,2]
[368295012,1751097051095,-460.0,0.00021369,2]
[368295013,1751097051105,-2452.88,0.00021369,2]
[368295014,1751097051115,-649.65,0.00021369,2]
[368295015,1751097051124,-738.92,0.00021369,2]
[368295016,1751097051134,-1337.25,0.00021369,2]
[368295017,1751097051144,-460.0,0.00021369,2]
[368295018,1751097051153,-556.47,0.00021369,2]
[368295019,1751097051163,-2178.44,0.00021369,2]
[368295020,1751097051172,-481.02,0.00021369,2]
[368295021,1751097051181,-177.78759519,0.00021369,2]
[368295022,1751097051191,-679.83,0.00021369,2]
[368295023,1751097051200,-1275.64,0.00021369,2]
[368295024,1751097051210,-675.36,0.00021369,2]
[368295025,1751097051219,-460.0,0.00021369,2]
[368295026,1751097051230,-647.34,0.00021369,2]
[368295027,1751097051241,-2143.18,0.00021369,2]
[368295028,1751097051251,-460.0,0.00021369,2]
[368295029,1751097051260,-460.0,0.00021369,2]
[368295030,1751097051270,-929.5,0.00021369,2]
[368295031,1751097051280,-512.42,0.00021369,2]
[368295032,1751097051289,-575.19013964,0.00021369,2]
[368295033,1751097051298,-2107.7,0.00021369,2]
[368295034,1751097051308,-477.23,0.00021369,2]
[368295035,1751097051317,-460.0,0.00021369,2]
[368295036,1751097051327,-929.29,0.00021369,2]
[368295037,1751097051336,-460.0,0.00021369,2]
[368295038,1751097051346,-1835.86,0.00021369,2]
[368295039,1751097051356,-2555.55,0.00021369,2]
[368295040,1751097051365,-460.0,0.00021369,2]
[368295041,1751097051375,-460.0,0.00021369,2]
[368295042,1751097051385,-460.0,0.00021369,2]
[368295043,1751097051395,-502.59,0.00021369,2]
[368295044,1751097051406,-460.0,0.00021369,2]
[368295045,1751097051415,-460.0,0.00021369,2]
[368295046,1751097051425,-460.0,0.00021369,2]
[368295047,1751097051435,-1344.01,0.00021369,2]
[368295048,1751097051444,-2037.07,0.00021369,2]
[368295049,1751097051454,-667.02,0.00021369,2]
[368295050,1751097051464,-1253.37,0.00021369,2]
[368295051,1751097051473,-460.0,0.00021369,2]
[368295052,1751097051483,-460.0,0.00021369,2]
[368295053,1751097051494,-460.0,0.00021369,2]
[368295054,1751097051504,-460.0,0.00021369,2]
[368295055,1751097051514,-3188.43,0.00021369,2]
[368295056,1751097051524,-460.0,0.00021369,2]
[368295057,1751097051534,-541.05,0.00021369,2]
[368295058,1751097051543,-500.0,0.00021369,2]
[368295059,1751097051553,-1392.9,0.00021369,2]
[368295060,1751097051563,-460.0,0.00021369,2]
[368295061,1751097051572,-1296.65,0.00021369,2]
[368295062,1751097051583,-1547.24,0.00021369,2]
[368295063,1751097051592,-813.94,0.00021369,2]
[368295064,1751097051602,-500.0,0.0002137,2]
[368295065,1751097051612,-472.98,0.00021405,2]
[368295066,1751097051622,-161.234175,0.00021495,6]
[368295067,1751097051632,-195.1,0.00021513,4]
[368295068,1751097051641,-500.0,0.00021533,2]
[368295069,1751097051651,-232004.77803,0.00021542,2]
[368295070,1751097051663,-7054.58916906,0.00021543,2]
[368295071,1751097051675,-413.815039,0.0002156,4]
[368295072,1751097051685,-500.0,0.00021573,2]
[368295073,1751097051695,-500.0,0.00021573,2]
[368295074,1751097051704,-500.0,0.00021573,2]
[368295075,1751097051714,-500.0,0.00021573,2]
[368295076,1751097051725,-500.0,0.00021573,2]
[368295077,1751097051735,-500.0,0.00021573,2]
[368295078,1751097051745,-500.0,0.00021573,2]
[368295079,1751097051755,-500.0,0.00021573,2]
[368295080,1751097051765,-500.0,0.00021573,2]
[368295081,1751097051775,-250.61579484,0.00021573,2]
[368295082,1751097051786,-8642.2896708,0.0002159,5]
[368295083,1751097051796,-502.89520889,0.000216,2]
[368295084,1751097051805,-151.0,0.000216,3]
[368295085,1751097051815,-552.08,0.00021643,2]
[368295086,1751097051826,-460.0,0.00021643,2]
[368295087,1751097051835,-460.0,0.00021643,2]
[368295088,1751097051845,-212.64,0.00021643,2]
[368295089,1751097051855,-734.98,0.00021643,2]
[368295090,1751097051865,-460.0,0.00021643,2]
[368295091,1751097051875,-4169.62,0.00021643,2]
[368295092,1751097051885,-732.48,0.00021643,2]
[368295093,1751097051896,-460.0,0.00021643,2]
[368295094,1751097051906,-2452.88,0.00021643,2]
[368295095,1751097051915,-649.65,0.00021643,2]
[368295096,1751097051925,-738.92,0.00021643,2]
[368295097,1751097051935,-1337.25,0.00021643,2]
[368295098,1751097051948,-460.0,0.00021643,2]
[368295099,1751097051957,-556.47,0.00021643,2]
[368295100,1751097051967,-1348.50477644,0.00021643,2]
[368295101,1751097052271,-272.67577278,0.00019178,2]
[368295102,1751097052396,-187.32422722,0.00019178,2]
[368295103,1751097052407,-110.72273547,0.00019178,2]
[368295113,1751097296982,196.31256784,0.000222,69]
[368295115,1751097301957,196.31256782,0.000222,69]
[368295116,1751097306969,196.31256782,0.00022206,69]
[368295123,1751097406931,301.937767,0.00013699,2]
[368295146,1751097628511,175.84275825,0.00024,120]
[368295149,1751097747846,196.31256782,0.000222,69]
[368295150,1751098049183,-688.14984332,0.00018517,2]
[368295189,1751098182408,196.31256782,0.000222,69]
[368295222,1751098232745,-300.0,0.00018308,2]
[368295223,1751098232754,-500.0,0.00018309,2]
[368295224,1751098232764,-181.56283912,0.00018309,2]
[368295225,1751098232775,-6.6573923,0.00018309,2]
[368295226,1751098232787,-500.0,0.00018309,2]
[368295227,1751098232798,-500.0,0.00018309,2]
[368295228,1751098232808,-500.0,0.00018309,2]
[368295229,1751098232817,-430.43109959,0.00018309,2]
[368295230,1751098232827,-419.09790603,0.00018309,2]
[368295232,1751098232836,-153.5518679,0.00018309,2]
[368295234,1751098232846,-3477.01295833,0.0001831,2]
[368295241,1751098238664,-21422.98704167,0.0001831,2]
[368295242,1751098238674,-315.2704101,0.00019078,2]
[368295243,1751098238684,-349.27726453,0.00019178,2]
[368295244,1751098238694,-460.0,0.00019178,2]
[368295245,1751098238704,-460.0,0.00019178,2]
[368295246,1751098238713,-460.0,0.00019178,2]
[368295247,1751098238723,-460.0,0.00019178,2]
[368295248,1751098238732,-460.0,0.00019178,2]
[368295249,1751098238742,-460.0,0.00019178,2]
[368295250,1751098238751,-460.0,0.00019178,2]
[368295251,1751098238760,-460.0,0.00019178,2]
[368295252,1751098238770,-460.0,0.00019178,2]
[368295253,1751098238779,-618.67,0.00019178,2]
[368295254,1751098238788,-460.0,0.00019178,2]
[368295255,1751098238798,-460.0,0.00019178,2]
[368295256,1751098238807,-460.0,0.00019178,2]
[368295257,1751098238816,-460.0,0.00019178,2]
[368295258,1751098238825,-239.24864084,0.00019178,2]
[368295259,1751098238835,-460.0,0.00019178,2]
[368295260,1751098238844,-460.0,0.00019178,2]
[368295261,1751098238854,-561.63316843,0.00019178,2]
[368295262,1751098238863,-460.0,0.00019178,2]
[368295263,1751098238872,-460.0,0.00019178,2]
[368295264,1751098238882,-1424.45,0.00019178,2]
[368295265,1751098238892,-460.0,0.00019178,2]
[368295266,1751098238901,-460.0,0.00019178,2]
[368295267,1751098238911,-254.44,0.00019178,2]
[368295268,1751098238920,-460.0,0.00019178,2]
[368295269,1751098238929,-460.0,0.00019178,2]
[368295270,1751098238938,-460.0,0.00019178,2]
[368295271,1751098238948,-460.0,0.00019178,2]
[368295272,1751098238957,-3358.86,0.00019178,2]
[368295273,1751098238966,-500.0,0.00019178,2]
[368295274,1751098238975,-460.0,0.00019178,2]
[368295275,1751098238984,-521.75,0.00019178,2]
[368295276,1751098238994,-470.66,0.00019178,2]
[368295277,1751098239003,-533.15,0.00019178,2]
[368295278,1751098239012,-1224.18,0.00019178,2]
[368295279,1751098239021,-1170.58,0.00019178,2]
[368295280,1751098239029,-460.0,0.00019178,2]
[368295281,1751098239039,-2112.2,0.00019178,2]
[368295282,1751098239048,-1851.67,0.00019178,2]
[368295283,1751098239056,-460.0,0.00019178,2]
[368295284,1751098239065,-460.0,0.00019178,2]
[368295285,1751098239074,-573.0,0.00019178,2]
[368295286,1751098239083,-460.0,0.00019178,2]
[368295287,1751098239092,-573.53,0.00019178,2]
[368295288,1751098239102,-460.0,0.00019178,2]
[368295289,1751098239111,-460.0,0.00019178,2]
[368295290,1751098239120,-854.84,0.00019178,2]
[368295291,1751098239129,-460.0,0.00019178,2]
[368295292,1751098239138,-460.0,0.00019178,2]
[368295293,1751098239147,-1098.47,0.00019178,2]
[368295294,1751098239156,-460.0,0.00019178,2]
[368295295,1751098239165,-460.0,0.00019178,2]
[368295296,1751098239174,-460.0,0.00019178,2]
[368295297,1751098239183,-460.0,0.00019178,2]
[368295298,1751098239192,-460.0,0.00019178,2]
[368295299,1751098239202,-555.3,0.00019178,2]
[368295300,1751098239211,-460.0,0.00019178,2]
[368295301,1751098239220,-460.0,0.00019178,2]
[368295302,1751098239229,-500.0,0.00019178,2]
[368295303,1751098239239,-500.0,0.00019178,2]
[368295304,1751098239249,-500.0,0.00019178,2]
[368295305,1751098239258,-500.0,0.00019178,2]
[368295306,1751098239267,-460.0,0.00019178,2]
[368295307,1751098239277,-271.42337978,0.00019178,2]
[368295308,1751098239286,-798.27,0.00019178,2]
[368295309,1751098239295,-460.0,0.00019178,2]
[368295310,1751098239305,-1973.72,0.00019178,2]
[368295311,1751098239314,-460.0,0.00019178,2]
[368295312,1751098239323,-460.0,0.00019178,2]
[368295313,1751098239333,-433.132882,0.00019178,2]
[368295314,1751098239342,-460.0,0.00019178,2]
[368295315,1751098239350,-460.0,0.00019178,2]
[368295316,1751098239360,-1934.81,0.00019178,2]
[368295317,1751098239369,-2153.52,0.00019178,2]
[368295318,1751098239380,-2311.91,0.00019178,2]
[368295319,1751098239390,-460.0,0.00019178,2]
[368295320,1751098239399,-483.36,0.00019178,2]
[368295321,1751098239408,-460.0,0.00019178,2]
[368295322,1751098239417,-460.0,0.00019178,2]
[368295323,1751098239427,-460.0,0.00019178,2]
[368295324,1751098239437,-492.46961548,0.00019178,2]
[368295325,1751098239446,-460.0,0.00019178,2]
[368295326,1751098239458,-460.0,0.00019178,2]
[368295327,1751098239469,-460.0,0.00019178,2]
[368295328,1751098239478,-460.0,0.00019178,2]
[368295329,1751098239488,-460.0,0.00019178,2]
[368295330,1751098239497,-461.01639324,0.00019178,2]
[368295331,1751098239508,-383.02756958,0.00019178,2]
[368295332,1751098239517,-3011.3,0.00019178,2]
[368295333,1751098239526,-460.0,0.00019178,2]
[368295334,1751098239535,-460.0,0.00019178,2]
[368295335,1751098239545,-460.0,0.00019178,2]
[368295336,1751098239555,-460.0,0.00019178,2]
[368295337,1751098239564,-1183.74,0.00019178,2]
[368295338,1751098239573,-828.51,0.00019178,2]
[368295339,1751098239582,-284.95357821,0.00019178,2]
[368295340,1751098239591,-303.47581799,0.00019178,2]
[368295341,1751098239601,-460.0,0.00019178,2]
[368295342,1751098239611,-1269.35,0.00019178,2]
[368295343,1751098239620,-460.0,0.00019178,2]
[368295344,1751098239629,-1911.89,0.00019178,2]
[368295345,1751098239640,-460.0,0.00019178,2]
[368295346,1751098239650,-460.0,0.00019178,2]
[368295347,1751098239659,-534.48,0.00019178,2]
[368295348,1751098239669,-661.26,0.00019178,2]
[368295349,1751098239678,-460.0,0.00019178,2]
[368295350,1751098239688,-460.0,0.00019178,2]
[368295351,1751098239698,-460.96380648,0.00019178,2]
[368295352,1751098239707,-511.0,0.00019178,2]
[368295353,1751098239716,-460.0,0.00019178,2]
[368295354,1751098239726,-1315.52,0.00019178,2]
[368295355,1751098239735,-460.0,0.00019178,2]
[368295356,1751098239744,-460.0,0.00019178,2]
[368295357,1751098239754,-629.96,0.00019178,2]
[368295358,1751098239763,-460.0,0.00019178,2]
[368295359,1751098239773,-1461.29,0.00019178,2]
[368295360,1751098239783,-460.0,0.00019178,2]
[368295361,1751098239792,-460.0,0.00019178,2]
[368295362,1751098239801,-460.0,0.00019178,2]
[368295363,1751098239811,-460.0,0.00019178,2]
[368295364,1751098239820,-768.73,0.00019178,2]
[368295365,1751098239830,-460.0,0.00019178,2]
[368295366,1751098239839,-371.934057,0.00019178,2]
[368295367,1751098239848,-636.27004962,0.00019328,2]
[368295368,1751098239857,-1507.88320965,0.00019329,2]
[368295369,1751098239875,-87149.76730284,0.00019329,2]
[368295370,1751098239884,-255.76,0.00019442,3]
[368295371,1751098239894,-767.32,0.00019442,3]
[368295372,1751098239903,-500.0,0.00019451,2]
[368295373,1751098239913,-500.0,0.00019451,2]
[368295374,1751098239922,-500.0,0.00019451,2]
[368295375,1751098239938,-460.0,0.00019452,2]
[368295376,1751098239951,-460.0,0.00019452,2]
[368295377,1751098239961,-460.0,0.00019452,2]
[368295378,1751098239972,-481.66,0.00019452,2]
[368295379,1751098239982,-460.0,0.00019452,2]
[368295380,1751098239992,-252.95527406,0.00019452,2]
[368295381,1751098240001,-460.0,0.00019452,2]
[368295382,1751098240011,-460.0,0.00019452,2]
[368295383,1751098240021,-618.67,0.00019452,2]
[368295384,1751098240031,-460.0,0.00019452,2]
[368295385,1751098240041,-460.0,0.00019452,2]
[368295386,1751098240050,-460.0,0.00019452,2]
[368295387,1751098240060,-460.0,0.00019452,2]
[368295388,1751098240069,-391.34238198,0.00019452,2]
[368295389,1751098240079,-454.77441597,0.00019452,2]
[368295390,1751098240089,-1424.45,0.00019452,2]
[368295391,1751098240099,-460.0,0.00019452,2]
[368295392,1751098240109,-460.0,0.00019452,2]
[368295393,1751098240118,-460.0,0.00019452,2]
[368295394,1751098240128,-498.19645371,0.00019452,2]
[368295395,1751098240137,-460.0,0.00019452,2]
[368295396,1751098240147,-460.0,0.00019452,2]
[368295397,1751098240156,-460.0,0.00019452,2]
[368295398,1751098240166,-3358.86,0.00019452,2]
[368295399,1751098240176,-460.0,0.00019452,2]
[368295400,1751098240186,-521.75,0.00019452,2]
[368295401,1751098240196,-470.66,0.00019452,2]
[368295402,1751098240206,-533.15,0.00019452,2]
[368295403,1751098240215,-1224.18,0.00019452,2]
[368295404,1751098240225,-1170.58,0.00019452,2]
[368295405,1751098240235,-460.0,0.00019452,2]
[368295406,1751098240244,-2112.2,0.00019452,2]
[368295407,1751098240254,-1851.67,0.00019452,2]
[368295408,1751098240263,-460.0,0.00019452,2]
[368295409,1751098240459,-460.0,0.00019452,2]
[368295410,1751098240469,-573.0,0.00019452,2]
[368295411,1751098240479,-460.0,0.00019452,2]
[368295412,1751098240488,-573.53,0.00019452,2]
[368295413,1751098240498,-460.0,0.00019452,2]
[368295414,1751098240507,-460.0,0.00019452,2]
[368295415,1751098240516,-854.84,0.00019452,2]
[368295416,1751098240526,-456.02306291,0.00019452,2]
[368295417,1751098240535,-460.0,0.00019452,2]
[368295418,1751098240544,-1098.47,0.00019452,2]
[368295419,1751098240554,-460.0,0.00019452,2]
[368295420,1751098240564,-460.0,0.00019452,2]
[368295421,1751098240573,-460.0,0.00019452,2]
[368295422,1751098240582,-460.0,0.00019452,2]
[368295423,1751098240592,-460.0,0.00019452,2]
[368295425,1751098240601,-460.0,0.00019452,2]
[368295426,1751098240611,-555.3,0.00019452,2]
[368295427,1751098240621,-460.0,0.00019452,2]
[368295428,1751098240630,-798.27,0.00019452,2]
[368295429,1751098240640,-460.0,0.00019452,2]
[368295430,1751098240649,-1973.72,0.00019452,2]
[368295431,1751098240659,-460.0,0.00019452,2]
[368295432,1751098240669,-460.0,0.00019452,2]
[368295433,1751098240679,-460.0,0.00019452,2]
[368295434,1751098240689,-460.0,0.00019452,2]
[368295435,1751098240698,-1934.81,0.00019452,2]
[368295436,1751098240708,-2153.52,0.00019452,2]
[368295437,1751098240718,-2311.91,0.00019452,2]
[368295438,1751098240727,-460.0,0.00019452,2]
[368295439,1751098240737,-483.36,0.00019452,2]
[368295440,1751098240746,-460.0,0.00019452,2]
[368295441,1751098240755,-460.0,0.00019452,2]
[368295442,1751098240765,-460.0,0.00019452,2]
[368295443,1751098240775,-460.0,0.00019452,2]
[368295444,1751098240784,-460.0,0.00019452,2]
[368295445,1751098240794,-460.0,0.00019452,2]
[368295446,1751098240803,-460.0,0.00019452,2]
[368295447,1751098240814,-3011.3,0.00019452,2]
[368295448,1751098240823,-460.0,0.00019452,2]
[368295449,1751098240832,-460.0,0.00019452,2]
[368295450,1751098240842,-460.0,0.00019452,2]
[368295451,1751098240852,-1183.74,0.00019452,2]
[368295452,1751098240862,-828.51,0.00019452,2]
[368295453,1751098240872,-460.0,0.00019452,2]
[368295454,1751098240881,-1269.35,0.00019452,2]
[368295455,1751098240891,-460.0,0.00019452,2]
[368295456,1751098240901,-1911.89,0.00019452,2]
[368295458,1751098240911,-460.0,0.00019452,2]
[368295460,1751098240920,-460.0,0.00019452,2]
[368295462,1751098240930,-534.48,0.00019452,2]
[368295464,1751098240939,-661.26,0.00019452,2]
[368295466,1751098240952,-460.0,0.00019452,2]
[368295468,1751098240961,-511.0,0.00019452,2]